bitfinex-derivatives/quotes_SOLF0:USTF0_20240906
["timestamp","ask_amount","ask_price","bid_price","bid_amount"]
[1725597232105,1.4335,131.0,130.95,9.4]
[1725597232304,9.4,131.02,130.97,9.4]
[1725597232504,0.280824,131.01,130.98,0.05288373]
[1725597232714,30.90636523,131.04,130.98,9.45288373]
[1725597232897,3.8172,131.01,130.98,9.45288373]
[1725597237810,13.27636251,131.03,130.98,9.45288373]
[1725597239015,3.8172,131.01,130.98,9.45288373]
[1725597240405,3.8173,131.0,130.98,0.05288373]
[1725597240610,13.27636251,131.03,130.98,0.05288373]
[1725597240611,9.4,131.02,130.98,0.05288373]
[1725597241119,3.8176,130.99,130.98,0.05288373]
[1725597246332,4.1609,131.04,130.98,9.45288373]
[1725597246527,0.28076069,131.03,130.98,9.45288373]
[1725597246728,4.14220045,131.03,130.98,9.45288373]
[1725597247031,3.86143976,131.03,130.98,9.45288373]
[1725597247740,0.28076921,131.02,130.98,9.45288373]
[1725597249427,0.28076921,131.02,130.98,0.05288373]
[1725597249731,9.4,131.01,130.98,0.05288373]
[1725597249926,9.4,131.02,130.98,0.05288373]
[1725597250625,3.8175,131.0,130.98,0.05288373]
[1725597251436,9.4,131.02,130.98,0.05288373]
[1725597252126,3.8175,131.0,130.98,0.05288373]
[1725597252717,3.8176,130.99,130.98,0.05288373]
[1725597254734,3.8187,130.96,130.92,15.8552]
[1725597254928,9.4,130.97,130.9,99.74343646]
[1725597255130,9.4,130.97,130.9,109.14343646]
[1725597255628,3.819,130.95,130.91,5.1214]
[1725597255828,0.04926358,130.94,130.92,0.05022509]
[1725597256036,0.04926358,130.94,130.92,9.45022509]
[1725597256438,0.04926358,130.94,130.92,13.26982509]
[1725597259333,0.04926358,130.94,130.93,13.2194]
[1725597262236,3.818,130.98,130.93,9.4]
[1725597262432,3.818,130.98,130.96,9.4]
[1725597262928,3.8177,130.99,130.97,9.4]
[1725597263329,13.26143976,131.03,130.97,9.45044283]
[1725597263636,3.8175,131.0,130.97,9.45044283]
[1725597263935,3.86143976,131.03,130.97,9.45044283]
[1725597264131,0.2807737,131.02,130.97,9.45044283]
[1725597264335,3.8174,131.0,130.97,9.45044283]
[1725597268534,3.8176,130.99,130.97,0.05044283]
[1725597269838,3.8174,131.0,130.97,9.45044283]
[1725597271242,9.4,131.02,130.97,0.05044283]
[1725597271431,9.68079691,131.01,130.97,0.05044283]
[1725597271633,9.4,131.01,130.97,0.05044283]
[1725597274443,3.8179,130.99,130.97,0.05044283]
[1725597274840,3.8179,130.98,130.97,0.05044283]
[1725597281739,13.2179,130.98,130.97,0.05044283]
[1725597281943,9.4,130.98,130.92,1.3827]
[1725597282142,9.4,130.97,130.91,1.4121]
[1725597282745,9.4,130.95,130.89,2.7976]
[1725597282951,0.05406298,130.93,130.91,0.05418974]
[1725597283342,3.8196,130.92,130.91,0.05418974]
[1725597289654,13.2196,130.92,130.91,0.05418974]
[1725597293455,3.8196,130.92,130.91,0.05418974]
[1725597301264,13.2196,130.92,130.91,0.05418974]
[1725597301959,3.8196,130.92,130.91,0.05418974]
[1725597304775,0.05406298,130.93,130.91,0.05418974]
[1725597304959,0.05406298,130.93,130.92,9.4]
[1725597310967,0.05406298,130.93,130.91,13.27398974]
[1725597315685,0.05406298,130.93,130.92,3.8196]
[1725597320079,0.05406298,130.93,130.91,13.27388974]
[1725597320980,0.05406298,130.93,130.91,0.05418974]
[1725597321186,9.45406298,130.93,130.91,0.05418974]
[1725597322287,3.8196,130.92,130.91,0.05418974]
[1725597324390,0.05406298,130.93,130.91,0.05418974]
[1725597325787,0.05406298,130.93,130.92,9.4]
[1725597327785,0.05406298,130.93,130.92,13.2196]
[1725597328488,0.05406298,130.93,130.91,3.87398974]
[1725597328683,0.05406298,130.93,130.91,13.27398974]
[1725597330095,0.05406298,130.93,130.92,13.2196]
[1725597330286,3.8186,130.96,130.92,13.2196]
[1725597330597,9.4,130.98,130.93,9.4]
[1725597330897,3.8184,130.97,130.93,9.4]
[1725597331288,3.8184,130.97,130.94,0.057098]
[1725597339891,3.8185,130.96,130.94,0.057098]
[1725597340097,9.4,130.97,130.94,0.057098]
[1725597340286,9.4,130.97,130.94,0.05698338]
[1725597340487,3.8189,130.95,130.94,0.05698338]
[1725597340695,9.4,130.96,130.93,0.05122641]
[1725597341492,3.8192,130.94,130.93,0.05122641]
[1725597347900,3.819,130.95,130.93,0.05122641]
[1725597348099,3.819,130.95,130.93,0.0527943]
[1725597351912,4.0054,131.02,130.93,3.8719943]
[1725597352106,9.4,130.98,130.96,0.05062536]
[1725597353410,3.8182,130.97,130.96,0.05062536]
[1725597356311,3.8196,130.93,130.89,4.1069]
[1725597356504,3.8196,130.93,130.89,7.9273]
[1725597357109,0.05062536,130.92,130.9,0.05655462]
[1725597361509,0.05062536,130.92,130.9,3.87675462]
[1725597366624,0.05062536,130.92,130.9,0.05655462]
[1725597367823,3.8199,130.91,130.9,0.05655462]
[1725597368215,0.05062536,130.92,130.9,9.45655462]
[1725597369115,0.05062536,130.92,130.9,13.27675462]
[1725597371125,0.05062536,130.92,130.9,3.87675462]
[1725597375733,3.87032536,130.92,130.9,0.05655462]
[1725597376031,3.8199,130.91,130.9,0.05655462]
[1725597376433,9.4,130.91,130.82,2.8151]
[1725597376618,3.8211,130.88,130.83,9.4]
[1725597377235,3.8211,130.87,130.84,3.8218]
[1725597377734,3.87892786,130.87,130.84,3.87193594]
[1725597379827,0.05782786,130.87,130.84,3.87193594]
[1725597380636,0.05782786,130.87,130.85,13.2217]
[1725597381521,0.05782786,130.87,130.84,3.87203594]
[1725597382135,3.87892786,130.87,130.84,3.87203594]
[1725597385840,3.87892786,130.87,130.84,13.27203594]
[1725597389141,0.05782786,130.87,130.85,3.8217]
[1725597389439,0.05782786,130.87,130.86,9.4]
[1725597389945,0.05782786,130.87,130.86,13.2214]
[1725597391741,0.05782786,130.87,130.86,3.8214]
[1725597396644,0.05782786,130.87,130.85,13.2215]
[1725597397550,3.87902786,130.87,130.84,3.87203594]
[1725597401960,3.87902786,130.87,130.84,13.27203594]
[1725597406458,3.8214,130.86,130.84,0.05013594]
[1725597406659,9.45782786,130.87,130.84,0.05013594]
[1725597407460,3.8214,130.86,130.84,0.05013594]
[1725597408471,0.05782786,130.87,130.84,0.05013594]
[1725597408676,0.05782786,130.87,130.84,9.45013594]
[1725597409275,3.8216,130.86,130.84,9.45013594]
[1725597414575,3.8217,130.85,130.84,0.05013594]
[1725597415173,3.8217,130.85,130.79,3.8233]
[1725597415174,3.8224,130.83,130.79,3.8233]
[1725597415480,9.4,130.84,130.79,3.8233]
[1725597415676,9.4,130.84,130.78,10.7468]
[1725597415878,3.8227,130.82,130.78,14.5704]
[1725597416387,0.0577855,130.81,130.79,0.05004155]
[1725597417982,0.0577855,130.81,130.79,3.87344155]
[1725597418481,0.0577855,130.81,130.8,9.4]
[1725597419883,0.0577855,130.81,130.8,13.2232]
[1725597421186,0.0577855,130.81,130.8,9.4]
[1725597422084,0.0577855,130.81,130.8,13.2232]
[1725597423176,9.4,130.87,130.81,3.8226]
[1725597423376,84.44751625,130.88,130.82,9.4]
[1725597423575,3.8217,130.85,130.82,9.4]
[1725597423983,80.55755862,130.88,130.83,9.4]
[1725597424179,71.15755862,130.88,130.83,9.4]
[1725597424381,0.05752521,130.87,130.84,0.04885494]
[1725597425285,3.8215,130.86,130.84,0.04885494]
[1725597425477,0.05752521,130.87,130.84,9.44885494]
[1725597425675,0.05752521,130.87,130.85,9.4]
[1725597426078,0.05752521,130.87,130.86,3.8214]
[1725597427581,0.05752521,130.87,130.85,3.8217]
[1725597427888,0.05752521,130.87,130.84,0.04885494]
[1725597428883,3.8214,130.86,130.84,0.04885494]
[1725597430085,3.87872521,130.87,130.84,0.04885494]
[1725597430491,3.87872521,130.87,130.84,3.87075494]
[1725597430690,0.05752521,130.87,130.84,9.44885494]
[1725597431394,0.05752521,130.87,130.84,13.27065494]
[1725597434298,3.87882521,130.87,130.84,3.87065494]
[1725597444195,0.05752521,130.87,130.85,3.8215]
[1725597444402,0.05752521,130.87,130.85,9.4]
[1725597444802,0.05752521,130.87,130.85,13.2215]
[1725597445400,0.05752521,130.87,130.86,3.8214]
[1725597446303,0.05752521,130.87,130.85,3.8216]
[1725597455020,0.05752521,130.87,130.86,13.2214]
[1725597455317,9.4,130.94,130.86,9.4]
[1725597455524,9.68095798,130.93,130.87,3.8209]
[1725597455821,9.4,130.93,130.87,3.8209]
[1725597456324,0.04200521,130.91,130.89,0.05662613]
[1725597457422,3.8204,130.9,130.89,0.05662613]
[1725597465125,13.2204,130.9,130.89,0.05662613]
[1725597470033,3.8204,130.9,130.89,0.05662613]
[1725597474223,13.2204,130.9,130.89,0.05662613]
[1725597477042,3.822,130.84,130.83,2.6947]
[1725597477233,13.26821034,130.85,130.77,4.0432]
[1725597477429,9.4,130.84,130.78,9.4]
[1725597477632,3.8227,130.82,130.78,9.4]
[1725597478129,0.05750727,130.81,130.79,0.0482703]
[1725597479435,9.45750727,130.81,130.79,0.0482703]
[1725597479641,9.45750727,130.81,130.68,3.80659047]
[1725597479835,9.4,130.81,130.74,9.4]
[1725597480037,9.4,130.79,130.74,9.4]
[1725597480449,9.4,130.78,130.72,3.84197816]
[1725597480629,13.25306998,130.78,130.71,9.4]
[1725597480834,3.87347067,130.76,130.74,0.05680528]
[1725597482044,0.04897067,130.76,130.74,0.05680528]
[1725597483343,3.87337067,130.76,130.74,0.05680528]
[1725597485236,3.8246,130.75,130.74,0.05680528]
[1725597496559,0.04897067,130.76,130.74,9.45680528]
[1725597496747,0.04897067,130.76,130.74,12.17930528]
[1725597497252,0.04897067,130.76,130.74,16.00420528]
[1725597498760,9.4,130.8,130.75,13.2246]
[1725597499651,3.8236,130.79,130.75,13.2246]
[1725597499855,3.88184108,130.79,130.75,13.2246]
[1725597500750,3.8239,130.78,130.74,16.00400528]
[1725597504257,3.8239,130.78,130.75,3.8246]
[1725597509554,0.05824108,130.79,130.77,9.4]
[1725597509756,0.05824108,130.79,130.77,0.05642422]
[1725597509952,9.45824108,130.79,130.77,0.05642422]
[1725597510266,3.8237,130.78,130.77,0.05642422]
[1725597537785,13.2237,130.78,130.77,0.05642422]
[1725597544801,3.8237,130.78,130.77,0.05642422]
[1725597544996,3.88184108,130.79,130.77,0.05642422]
[1725597548093,13.28184108,130.79,130.77,0.05642422]
[1725597548894,3.8237,130.78,130.77,0.05642422]
[1725597552202,13.2237,130.78,130.77,0.05642422]
[1725597570306,3.8249,130.74,130.71,1.3413]
[1725597570503,13.2249,130.74,130.71,1.3413]
[1725597571306,13.27857826,130.74,130.71,1.39040257]
[1725597571922,3.8252,130.73,130.71,1.39040257]
[1725597573308,3.87867826,130.74,130.71,1.39040257]
[1725597574810,3.8252,130.73,130.71,1.39040257]
[1725597578310,3.8255,130.72,130.71,0.04910257]
[1725597582317,0.05367826,130.74,130.71,0.04910257]
[1725597583127,3.8255,130.72,130.71,0.04910257]
[1725597595928,0.05367826,130.74,130.71,0.04910257]
[1725597596935,3.87877826,130.74,130.71,3.87470257]
[1725597598028,3.8252,130.73,130.71,3.87470257]
[1725597599344,3.87867826,130.74,130.71,3.87470257]
[1725597600342,3.8252,130.73,130.71,0.04910257]
[1725597602647,3.8255,130.72,130.71,0.04910257]
[1725597603845,9.45367826,130.74,130.71,0.04910257]
[1725597604056,0.05367826,130.74,130.71,0.04910257]
[1725597605458,3.87877826,130.74,130.71,3.87480257]
[1725597609855,6.94510811,130.79,130.73,9.4]
[1725597610051,9.4,130.78,130.72,9.4]
[1725597610447,3.8245,130.76,130.73,3.8251]
[1725597610851,3.88304999,130.76,130.73,3.88162832]
[1725597619662,3.8247,130.75,130.73,3.88162832]
[1725597619864,3.8247,130.75,130.73,0.05652832]
[1725597622269,3.88304999,130.76,130.73,0.05652832]
[1725597625772,3.88304999,130.76,130.73,3.88172832]
[1725597626277,0.05854999,130.76,130.73,9.45652832]
[1725597626479,0.05854999,130.76,130.75,13.2246]
[1725597628382,0.05854999,130.76,130.73,0.05652832]
[1725597629074,3.8246,130.75,130.73,0.05652832]
[1725597630774,3.88304999,130.76,130.73,3.88172832]
[1725597631879,3.8246,130.75,130.73,3.88172832]
[1725597632274,3.8246,130.75,130.73,0.05652832]
[1725597634775,3.88294999,130.76,130.74,9.4]
[1725597639281,3.8246,130.75,130.73,3.88152832]
[1725597641079,3.88294999,130.76,130.73,3.88152832]
[1725597641579,0.05854999,130.76,130.73,0.05652832]
[1725597641887,3.8246,130.75,130.73,0.05652832]
[1725597642779,3.8249,130.74,130.73,0.05652832]
[1725597645086,3.8248,130.75,130.73,0.05652832]
[1725597645283,0.05854999,130.76,130.73,0.05652832]
[1725597645784,3.8249,130.74,130.73,0.05652832]
[1725597646883,3.8248,130.75,130.73,0.05652832]
[1725597657690,3.8249,130.74,130.73,0.05652832]
[1725597657989,3.8249,130.74,130.56,3.54323484]
[1725597657990,9.4,130.74,130.61,4.0675]
[1725597658289,9.4,130.73,130.67,9.4]
[1725597658684,3.8258,130.71,130.68,3.8267]
[1725597659092,3.88333615,130.71,130.68,3.87755223]
[1725597661489,0.05753615,130.71,130.69,9.4]
[1725597661691,0.05753615,130.71,130.7,9.4]
[1725597661992,0.05753615,130.71,130.7,3.8261]
[1725597662289,0.05753615,130.71,130.69,10.7365]
[1725597663512,0.05753615,130.71,130.68,0.05085223]
[1725597665294,3.88353615,130.71,130.68,3.87735223]
[1725597667494,3.88353615,130.71,130.69,3.8264]
[1725597668596,0.05753615,130.71,130.69,3.8264]
[1725597668991,0.05753615,130.71,130.68,3.87735223]
[1725597669298,0.05753615,130.71,130.68,0.05085223]
[1725597670201,3.8264,130.69,130.68,0.05085223]
[1725597672199,13.2264,130.69,130.68,0.05085223]
[1725597672391,13.2264,130.69,130.64,104.9404008]
[1725597672392,3.8271,130.67,130.64,104.9404008]
[1725597673298,9.4,130.66,130.64,0.05294893]
[1725597674402,3.8275,130.65,130.64,0.05294893]
[1725597675304,9.4,130.65,130.45,104.06915981]
[1725597675597,25.7837,130.68,130.45,104.06915981]
[1725597675598,9.4,130.61,130.55,9.4]
[1725597676293,0.05455381,130.59,130.57,0.05649818]
[1725597677996,0.05455381,130.59,130.57,9.45649818]
[1725597678995,0.05455381,130.59,130.57,0.05649818]
[1725597679193,0.05455381,130.59,130.58,9.4]
[1725597680498,3.8283,130.63,130.58,9.4]
[1725597680696,3.8283,130.63,130.6,9.4]
[1725597681003,3.8277,130.65,130.62,9.4]
[1725597681406,12.2137,130.68,130.62,9.4]
[1725597681601,0.05527135,130.65,130.62,9.45011679]
[1725597682403,3.88287135,130.65,130.62,9.45011679]
[1725597693814,3.88287135,130.65,130.62,13.27851679]
[1725597696121,3.8279,130.64,130.62,9.45011679]
[1725597696921,0.05527135,130.65,130.62,0.05011679]
[1725597698519,3.8281,130.63,130.62,0.05011679]
[1725597702723,0.05527135,130.65,130.62,0.05011679]
[1725597702930,0.05527135,130.65,130.62,13.27831679]
[1725597703315,3.88287135,130.65,130.62,13.27831679]
[1725597703527,0.05527135,130.65,130.62,0.05011679]
[1725597704230,3.88297135,130.65,130.62,0.05011679]
[1725597704823,9.4,130.63,130.62,0.05011679]
[1725597705119,75.78638377,130.63,130.62,0.05011679]
[1725597706116,81.63989955,130.63,130.55,6.5759]
[1725597706321,9.4,130.61,130.55,12.1455]
[1725597706519,13.21807613,130.61,130.55,12.1455]
[1725597706734,9.4,130.61,130.55,12.1455]
[1725597707119,0.050753,130.59,130.57,9.45806316]
[1725597707925,0.050753,130.59,130.58,9.4]
[1725597708136,9.4,130.66,130.58,9.4]
[1725597708328,9.4,130.66,130.58,13.2294]
[1725597708824,3.8283,130.63,130.58,13.2294]
[1725597709023,0.0581781,130.62,130.59,0.05374358]
[1725597709627,3.8866781,130.62,130.59,0.05374358]
[1725597709830,0.0581781,130.62,130.61,9.4]
[1725597712427,3.828,130.64,130.61,13.252342]
[1725597712629,3.828,130.64,130.62,9.4]
[1725597713632,3.88498717,130.64,130.62,9.45596273]
[1725597717630,3.88498717,130.64,130.62,0.05596273]
[1725597727438,3.8281,130.63,130.62,0.05596273]
[1725597732438,0.05698717,130.64,130.62,9.45596273]
[1725597732439,3.88488717,130.64,130.62,9.45596273]
[1725597734746,0.05698717,130.64,130.63,13.2281]
[1725597736144,7.01221262,130.64,130.63,13.2281]
[1725597736440,7.01221262,130.64,130.56,99.87384403]
[1725597736441,28.83598681,130.64,130.56,99.87384403]
[1725597736643,28.83598681,130.64,130.63,9.4]
[1725597736940,28.83598681,130.64,130.56,74.81185695]
[1725597737140,28.83598681,130.63,130.56,74.81185695]
[1725597737348,0.05181637,130.61,130.58,0.05779334]
[1725597737547,3.8273,130.66,130.58,0.05779334]
[1725597737847,3.8273,130.66,130.63,9.4]
[1725597738342,3.827,130.67,130.64,3.8278]
[1725597738646,3.88477447,130.67,130.64,3.87982713]
[1725597739037,3.88477447,130.67,130.64,13.27982713]
[1725597743153,3.827,130.67,130.57,4.0324]
[1725597743349,3.827,130.67,130.64,9.4]
[1725597743543,3.827,130.67,130.64,13.2277]
[1725597743940,3.88558444,130.67,130.64,13.27976685]
[1725597745358,0.05858444,130.67,130.66,9.4]
[1725597745847,0.05858444,130.67,130.66,13.2272]
[1725597746247,5.20940791,130.73,130.66,13.2272]
[1725597746248,1.3548,130.73,130.66,12.0597487]
[1725597746452,1.3548,130.73,130.68,9.4]
[1725597746646,3.73630499,130.74,130.68,9.4]
[1725597746848,1.4294,130.75,130.7,9.4]
[1725597747044,3.8252,130.73,130.7,13.226]
[1725597747244,3.88068281,130.73,130.7,13.28352496]
[1725597747450,0.05548281,130.73,130.71,9.4]
[1725597748354,0.05548281,130.73,130.71,13.2258]
[1725597748551,0.05548281,130.73,130.72,9.4]
[1725597749350,0.05548281,130.73,130.71,13.2258]
[1725597752467,0.05548281,130.73,130.72,3.8255]
[1725597752763,0.05548281,130.73,130.72,13.2255]
[1725597756670,3.8244,130.76,130.72,13.2255]
[1725597756868,3.8244,130.76,130.73,9.4]
[1725597757570,3.8823062,130.76,130.73,9.45638523]
[1725597761263,3.8823062,130.76,130.73,13.28158523]
[1725597763267,0.0579062,130.76,130.73,0.05638523]
[1725597763976,3.8248,130.75,130.73,0.05638523]
[1725597764875,3.8823062,130.76,130.73,9.45638523]
[1725597765570,3.8247,130.75,130.73,9.45638523]
[1725597773383,3.8247,130.75,130.74,9.4]
[1725597779381,3.8824062,130.76,130.74,9.4]
[1725597780691,0.0579062,130.76,130.74,9.4]
[1725597780889,0.0579062,130.76,130.75,9.4]
[1725597787186,82.51492585,130.83,130.75,9.4]
[1725597787405,3.90636565,130.82,130.77,9.4]
[1725597788107,3.8235,130.79,130.78,0.0523027]
[1725597790006,3.8232,130.8,130.78,0.0523027]
[1725597790206,0.03183832,130.81,130.79,9.4]
[1725597790605,3.85483832,130.81,130.79,9.4]
[1725597791210,3.85483832,130.81,130.78,0.0523027]
[1725597791507,3.85483832,130.81,130.79,9.4]
[1725597796809,3.85483832,130.81,130.78,0.0523027]
[1725597797005,3.85483832,130.81,130.79,9.4]
[1725597798612,0.03183832,130.81,130.78,0.0523027]
[1725597799909,3.8233,130.8,130.78,0.0523027]
[1725597800511,3.8234,130.79,130.78,0.0523027]
[1725597803820,3.8234,130.79,130.78,9.4523027]
[1725597804414,3.8232,130.8,130.78,9.4523027]
[1725597804816,3.8232,130.8,130.79,9.4]
[1725597808417,3.8234,130.79,130.78,0.0523027]
[1725597808624,3.8234,130.79,130.78,9.4523027]
[1725597812422,3.8232,130.8,130.78,9.4523027]
[1725597812622,3.8232,130.8,130.79,9.4]
[1725597819437,3.8232,130.8,130.78,0.0523027]
[1725597819634,3.8232,130.8,130.79,9.4]
[1725597830430,3.8234,130.79,130.78,0.0523027]
[1725597830637,3.8234,130.79,130.78,9.4523027]
[1725597831226,3.8234,130.79,130.78,0.0523027]
[1725597832440,3.8247,130.75,130.73,9.4]
[1725597833436,3.88049282,130.75,130.73,9.45773789]
[1725597835643,0.05579282,130.75,130.73,9.45773789]
[1725597840842,3.88039282,130.75,130.73,9.45773789]
[1725597842437,3.8249,130.74,130.73,0.05773789]
[1725597850760,3.8261,130.7,130.69,112.08077081]
[1725597854161,0.05481619,130.71,130.68,0.05366087]
[1725597854470,3.8264,130.69,130.68,0.05366087]
[1725597884287,7.63055985,130.69,130.68,0.05366087]
[1725597884490,3.8264,130.69,130.68,0.05366087]
[1725597885784,7.70253401,130.69,130.68,0.05366087]
[1725597888283,17.10253401,130.69,130.68,0.05366087]
[1725597893085,7.70253401,130.69,130.68,0.05366087]
[1725597895194,17.10253401,130.69,130.68,0.05366087]
[1725597904091,7.70253401,130.69,130.68,0.05366087]
[1725597904481,3.8264,130.69,130.68,0.05366087]
[1725597904894,3.8261,130.7,130.68,0.05366087]
[1725597905190,0.05481619,130.71,130.68,0.05366087]
[1725597905395,3.8262,130.7,130.68,0.05366087]
[1725597905693,0.05481619,130.71,130.68,0.05366087]
[1725597906095,3.88061619,130.71,130.68,0.05366087]
[1725597906792,3.8261,130.7,130.68,0.05366087]
[1725597909587,3.8264,130.69,130.68,0.05366087]
[1725597910798,7.69908856,130.69,130.68,0.05366087]
[1725597912191,17.09908856,130.69,130.68,0.05366087]
[1725597926197,13.2264,130.69,130.68,0.05366087]
[1725597926403,3.8264,130.69,130.68,0.05366087]
[1725597928412,13.2262,130.7,130.68,0.05366087]
[1725597928601,0.05481619,130.71,130.68,0.05366087]
[1725597929896,0.05481619,130.71,130.68,3.88026087]
[1725597933914,3.88061619,130.71,130.68,0.05366087]
[1725597941714,0.05481619,130.71,130.68,9.45366087]
[1725597941915,70.88695215,130.73,130.69,13.4048]
[1725597942910,0.05692126,130.72,130.69,13.4048]
[1725597943109,1.3408,130.79,130.71,9.4]
[1725597943415,9.4,130.77,130.71,9.4]
[1725597943611,9.4,130.77,130.72,3.8255]
[1725597943612,3.8249,130.74,130.72,3.8255]
[1725597944012,3.85504147,130.74,130.72,3.87396076]
[1725597944208,3.85504147,130.74,130.72,0.04846076]
[1725597945420,0.03014147,130.74,130.72,3.87386076]
[1725597946009,0.03014147,130.74,130.72,0.04846076]
[1725597947425,0.03014147,130.74,130.72,3.87376076]
[1725597951527,3.85514147,130.74,130.72,0.04846076]
[1725597953625,0.03014147,130.74,130.72,3.87386076]
[1725597955124,0.03014147,130.74,130.73,3.8252]
[1725597955830,0.03014147,130.74,130.72,0.04846076]
[1725597956233,0.03014147,130.74,130.72,3.87376076]
[1725597959233,0.03014147,130.74,130.73,3.8252]
[1725597962632,70.87873143,130.83,130.75,3.8246]
[1725597962835,9.68121377,130.82,130.75,13.2246]
[1725597963029,9.4,130.82,130.75,13.2246]
[1725597963231,3.8238,130.78,130.75,3.8246]
[1725597963637,3.8238,130.78,130.75,3.88285349]
[1725597964635,3.8235,130.79,130.75,3.88285349]
[1725597967339,3.8235,130.79,130.75,13.28285349]
[1725597972130,3.8233,130.8,130.77,9.4]
[1725597972333,74.73298062,130.83,130.77,9.45139766]
[1725597972743,74.73298062,130.83,130.77,13.27519766]
[1725597973440,74.73298062,130.83,130.78,9.4]
[1725597973646,70.87873143,130.83,130.79,9.4]
[1725597973945,70.87873143,130.83,130.8,0.05403387]
[1725597974243,10.7085,130.87,130.81,9.4]
[1725597974447,1.3085,130.87,130.83,0.04813911]
[1725597975339,3.8219,130.85,130.83,0.04813911]
[1725597975637,9.4,130.85,130.83,0.04813911]
[1725597976036,3.822,130.84,130.83,0.04813911]
[1725597976438,9.4,130.84,130.78,13.2236]
[1725597976630,3.8224,130.83,130.78,13.2236]
[1725597977343,3.87073911,130.82,130.79,0.05614146]
[1725597978045,0.04813911,130.82,130.79,0.05614146]
[1725597978837,3.8229,130.81,130.79,0.05614146]
[1725597982247,3.87083911,130.82,130.79,9.45614146]
[1725597983538,3.87083911,130.82,130.79,13.27954146]
[1725597992251,3.8229,130.81,130.79,9.45614146]
[1725597995547,3.87083911,130.82,130.79,13.27954146]
[1725597996259,3.87083911,130.82,130.8,9.4]
[1725598001062,0.04813911,130.82,130.81,9.4]
[1725598002866,3.87073911,130.82,130.79,3.87944146]
[1725598003058,0.04813911,130.82,130.79,9.45614146]
[1725598003968,0.04813911,130.82,130.79,13.27944146]
[1725598004261,0.04813911,130.82,130.81,9.4]
[1725598006061,0.04813911,130.82,130.81,13.2229]
[1725598010367,0.04813911,130.82,130.81,9.4]
[1725598011065,0.04813911,130.82,130.79,3.87944146]
[1725598011066,3.87073911,130.82,130.79,3.87944146]
[1725598011268,0.04813911,130.82,130.79,0.05614146]
[1725598012270,3.8232,130.8,130.79,0.05614146]
[1725598023073,3.8241,130.77,130.74,9.4]
[1725598024277,3.8241,130.77,130.74,9.45686846]
[1725598024278,3.8763549,130.77,130.74,9.45686846]
[1725598024473,0.0522549,130.77,130.74,13.28176846]
[1725598024776,0.0522549,130.77,130.76,9.4]
[1725598025375,5.21988588,130.83,130.76,13.21157917]
[1725598025677,5.21988588,130.83,130.77,9.4]
[1725598026378,0.04991958,130.81,130.79,0.05384076]
[1725598026874,3.8232,130.8,130.79,0.05384076]
[1725598035673,9.4,130.8,130.73,4.0751]
[1725598035880,5.21988588,130.83,130.71,9.4]
[1725598035881,9.4,130.78,130.71,9.4]
[1725598036177,9.4,130.78,130.71,13.2256]
[1725598036478,3.8245,130.76,130.71,9.4]
[1725598036682,0.0522594,130.75,130.72,3.88338196]
[1725598037194,0.0522594,130.75,130.72,0.05788196]
[1725598037195,3.8769594,130.75,130.72,0.05788196]
[1725598037380,0.0522594,130.75,130.72,0.05788196]
[1725598038279,3.8769594,130.75,130.72,0.05788196]
[1725598039191,0.0522594,130.75,130.73,9.4]
[1725598043686,3.8768594,130.75,130.72,3.88328196]
[1725598044083,3.8768594,130.75,130.72,0.05788196]
[1725598044286,0.0522594,130.75,130.72,0.05788196]
[1725598044487,9.4522594,130.75,130.72,0.05788196]
[1725598044683,9.4,130.74,130.72,0.05788196]
[1725598044881,13.2252,130.73,130.72,0.05788196]
[1725598045387,3.8252,130.73,130.72,0.05788196]
[1725598048680,13.2252,130.73,130.72,0.05788196]
[1725598050786,3.8252,130.73,130.72,0.05788196]
[1725598054388,0.0522594,130.75,130.72,0.05788196]
[1725598055087,3.8770594,130.75,130.72,0.05788196]
[1725598055283,3.8770594,130.75,130.72,9.45788196]
[1725598055485,0.0522594,130.75,130.74,9.4]
[1725598055682,0.0522594,130.75,130.73,9.4]
[1725598056695,0.0522594,130.75,130.73,13.2252]
[1725598057195,0.0522594,130.75,130.74,9.4]
[1725598058992,0.0522594,130.75,130.74,13.2249]
[1725598059788,3.8235,130.79,130.75,3.8243]
[1725598059994,3.8235,130.79,130.76,9.4]
[1725598060190,9.4,130.81,130.75,13.2243]